[Event "Titled Tuesday Blitz November 14 Early 2023"]
[White "aghasiyevkamal"]
[Black "Aradhya, Garg"]
[BlackFideId "25006746"]
[WhiteElo "2586"]
[BlackElo "2737"]
[Result "1-0"]
[Round "8"]
[TimeControl "180+1"]
[Date "2023.11.14"]
[WhiteClock "0:00:40"]
[BlackClock "0:00:44"]
[Board "50"]

1. e4 {[%clk 0:03:00]}  e5 {[%clk 0:03:00]} 2. Nf3 {[%clk 0:02:59]}  Nc6 {[%clk 0:03:00]} 3. Bc4 {[%clk 0:02:54]}  Nf6 {[%clk 0:03:00]} 4. d3 {[%clk 0:02:54]}  h6 {[%clk 0:03:00]} 5. c3 {[%clk 0:02:51]}  Bc5 {[%clk 0:03:00]} 6. Nbd2 {[%clk 0:02:49]}  O-O {[%clk 0:02:59]} 7. O-O {[%clk 0:02:48]}  d6 {[%clk 0:02:59]} 8. Bb3 {[%clk 0:02:44]}  a5 {[%clk 0:02:59]} 9. h3 {[%clk 0:02:39]}  b5 {[%clk 0:02:57]} 10. Re1 {[%clk 0:02:31]}  a4 {[%clk 0:02:55]} 11. Bc2 {[%clk 0:02:31]}  Bb6 {[%clk 0:02:53]} 12. a3 {[%clk 0:02:30]}  d5 {[%clk 0:02:46]} 13. exd5 {[%clk 0:02:17]}  Qxd5 {[%clk 0:02:46]} 14. Ne4 {[%clk 0:02:16]}  Nxe4 {[%clk 0:02:44]} 15. dxe4 {[%clk 0:02:16]}  Qxd1 {[%clk 0:02:45]} 16. Rxd1 {[%clk 0:02:16]}  Be6 {[%clk 0:02:45]} 17. Bd3 {[%clk 0:01:58]}  Rfd8 {[%clk 0:02:42]} 18. Be3 {[%clk 0:01:58]}  Bxe3 {[%clk 0:02:41]} 19. fxe3 {[%clk 0:01:58]}  Rab8 {[%clk 0:02:40]} 20. Be2 {[%clk 0:01:42]}  f6 {[%clk 0:02:38]} 21. Kf2 {[%clk 0:01:42]}  Kf8 {[%clk 0:02:32]} 22. Ne1 {[%clk 0:01:42]}  Ke7 {[%clk 0:02:31]} 23. Nd3 {[%clk 0:01:41]}  Na5 {[%clk 0:02:27]} 24. Nc5 {[%clk 0:01:40]}  Nb3 {[%clk 0:02:24]} 25. Nxb3 {[%clk 0:01:37]}  Bxb3 {[%clk 0:02:23]} 26. Rxd8 {[%clk 0:01:37]}  Rxd8 {[%clk 0:02:23]} 27. Ke1 {[%clk 0:01:37]}  c6 {[%clk 0:02:23]} 28. Rc1 {[%clk 0:01:28]}  g6 {[%clk 0:02:22]} 29. c4 {[%clk 0:01:27]}  bxc4 {[%clk 0:01:58]} 30. Bxc4 {[%clk 0:01:26]}  Bxc4 {[%clk 0:01:58]} 31. Rxc4 {[%clk 0:01:26]}  Rb8 {[%clk 0:01:59]} 32. Rc2 {[%clk 0:01:21]}  Kd6 {[%clk 0:01:58]} 33. Rd2+ {[%clk 0:01:16]}  Kc7 {[%clk 0:01:58]} 34. Kd1 {[%clk 0:01:16]}  Rb3 {[%clk 0:01:58]} 35. Re2 {[%clk 0:01:16]}  Kd6 {[%clk 0:01:53]} 36. Kc2 {[%clk 0:01:15]}  f5 {[%clk 0:01:53]} 37. exf5 {[%clk 0:01:12]}  gxf5 {[%clk 0:01:54]} 38. Rd2+ {[%clk 0:01:09]}  Ke6 {[%clk 0:01:54]} 39. Rd3 {[%clk 0:01:09]}  Rxd3 {[%clk 0:01:48]} 40. Kxd3 {[%clk 0:01:09]}  Kd5 {[%clk 0:01:49]} 41. e4+ {[%clk 0:01:04]}  fxe4+ {[%clk 0:01:49]} 42. Ke3 {[%clk 0:01:04]}  Kc4 {[%clk 0:01:49]} 43. g4 {[%clk 0:01:03]}  Kb3 {[%clk 0:01:48]} 44. h4 {[%clk 0:01:04]}  Kxb2 {[%clk 0:01:48]} 45. g5 {[%clk 0:01:04]}  hxg5 {[%clk 0:01:48]} 46. hxg5 {[%clk 0:01:05]}  Kxa3 {[%clk 0:01:41]} 47. g6 {[%clk 0:01:06]}  Kb2 {[%clk 0:01:26]} 48. g7 {[%clk 0:01:07]}  a3 {[%clk 0:01:27]} 49. g8=Q {[%clk 0:01:07]}  a2 {[%clk 0:01:27]} 50. Qb8+ {[%clk 0:01:06]}  Kc2 {[%clk 0:01:23]} 51. Qxe5 {[%clk 0:01:04]}  Kb1 {[%clk 0:01:24]} 52. Qb8+ {[%clk 0:01:00]}  Kc2 {[%clk 0:01:22]} 53. Qa7 {[%clk 0:00:58]}  Kb1 {[%clk 0:01:20]} 54. Qb6+ {[%clk 0:00:57]}  Kc2 {[%clk 0:01:18]} 55. Qa5 {[%clk 0:00:54]}  Kb3 {[%clk 0:01:08]} 56. Kd2 {[%clk 0:00:51]}  e3+ {[%clk 0:01:08]} 57. Kxe3 {[%clk 0:00:50]}  Kb2 {[%clk 0:00:46]} 58. Qb4+ {[%clk 0:00:49]}  Ka1 {[%clk 0:00:45]} 59. Kd2 {[%clk 0:00:44]}  c5 {[%clk 0:00:45]} 60. Qb8 {[%clk 0:00:44]}  c4 {[%clk 0:00:45]} 61. Kc1 {[%clk 0:00:40]}  c3 {[%clk 0:00:45]} 62. Qb3 {[%clk 0:00:40]}  c2 {[%clk 0:00:44]} 63. Qb2# {[%clk 0:00:40]} 1-0


[Site "https://www.chess.com"]

[Event "Titled Tuesday Blitz November 14 Early 2023"]
[White "Chernomordik, Pavel"]
[Black "djokovic74"]
[WhiteFideId "2804530"]
[WhiteElo "2538"]
[BlackElo "2728"]
[Result "1/2-1/2"]
[Round "8"]
[TimeControl "180+1"]
[Date "2023.11.14"]
[WhiteClock "0:00:09"]
[BlackClock "0:00:04"]
[Board "51"]

1. e4 {[%clk 0:03:00]}  e6 {[%clk 0:02:59]} 2. Nc3 {[%clk 0:03:00]}  d5 {[%clk 0:02:59]} 3. d4 {[%clk 0:03:00]}  Nf6 {[%clk 0:02:59]} 4. Bg5 {[%clk 0:02:59]}  dxe4 {[%clk 0:02:59]} 5. Nxe4 {[%clk 0:02:59]}  Be7 {[%clk 0:02:59]} 6. Bxf6 {[%clk 0:02:59]}  gxf6 {[%clk 0:02:59]} 7. Nf3 {[%clk 0:02:59]}  f5 {[%clk 0:03:00]} 8. Nc3 {[%clk 0:02:58]}  a6 {[%clk 0:03:00]} 9. Qe2 {[%clk 0:02:58]}  b5 {[%clk 0:03:00]} 10. O-O-O {[%clk 0:02:56]}  b4 {[%clk 0:02:57]} 11. Na4 {[%clk 0:02:49]}  Qd5 {[%clk 0:02:56]} 12. Kb1 {[%clk 0:02:45]}  Bd7 {[%clk 0:02:12]} 13. c4 {[%clk 0:02:42]}  Qa5 {[%clk 0:02:10]} 14. Nc5 {[%clk 0:02:34]}  Bxc5 {[%clk 0:02:09]} 15. Qe5 {[%clk 0:02:26]}  Rg8 {[%clk 0:01:51]} 16. dxc5 {[%clk 0:02:19]}  Nc6 {[%clk 0:01:50]} 17. Qe3 {[%clk 0:02:18]}  O-O-O {[%clk 0:01:31]} 18. Nd2 {[%clk 0:02:18]}  e5 {[%clk 0:01:08]} 19. Nb3 {[%clk 0:02:16]}  Qa4 {[%clk 0:01:08]} 20. g3 {[%clk 0:02:07]}  f4 {[%clk 0:00:52]} 21. Qe4 {[%clk 0:01:49]}  Bg4 {[%clk 0:00:51]} 22. Rxd8+ {[%clk 0:01:45]}  Rxd8 {[%clk 0:00:51]} 23. Be2 {[%clk 0:01:29]}  f5 {[%clk 0:00:43]} 24. Qc2 {[%clk 0:01:28]}  f3 {[%clk 0:00:35]} 25. h3 {[%clk 0:01:28]}  Nd4 {[%clk 0:00:21]} 26. Nxd4 {[%clk 0:01:19]}  Qxc2+ {[%clk 0:00:21]} 27. Kxc2 {[%clk 0:01:05]}  fxe2 {[%clk 0:00:21]} 28. hxg4 {[%clk 0:01:01]}  Rxd4 {[%clk 0:00:13]} 29. gxf5 {[%clk 0:00:56]}  e4 {[%clk 0:00:08]} 30. b3 {[%clk 0:00:47]}  Rd3 {[%clk 0:00:08]} 31. Re1 {[%clk 0:00:46]}  Rf3 {[%clk 0:00:06]} 32. Rxe2 {[%clk 0:00:45]}  Rxf5 {[%clk 0:00:06]} 33. Kd2 {[%clk 0:00:40]}  Rxc5 {[%clk 0:00:06]} 34. Rxe4 {[%clk 0:00:40]}  Ra5 {[%clk 0:00:06]} 35. c5 {[%clk 0:00:29]}  Rxa2+ {[%clk 0:00:05]} 36. Ke3 {[%clk 0:00:29]}  a5 {[%clk 0:00:04]} 37. Re7 {[%clk 0:00:25]}  Rb2 {[%clk 0:00:03]} 38. c6 {[%clk 0:00:24]}  Rxb3+ {[%clk 0:00:02]} 39. Kd4 {[%clk 0:00:24]}  Kb8 {[%clk 0:00:03]} 40. Rxh7 {[%clk 0:00:20]}  Rf3 {[%clk 0:00:03]} 41. Kc5 {[%clk 0:00:15]}  Rf5+ {[%clk 0:00:02]} 42. Kc4 {[%clk 0:00:15]}  Rxf2 {[%clk 0:00:03]} 43. Kb5 {[%clk 0:00:14]}  Ka7 {[%clk 0:00:01]} 44. Kxa5 {[%clk 0:00:14]}  b3 {[%clk 0:00:01]} 45. Rxc7+ {[%clk 0:00:13]}  Kb8 {[%clk 0:00:01]} 46. Rb7+ {[%clk 0:00:13]}  Kc8 {[%clk 0:00:02]} 47. Rxb3 {[%clk 0:00:12]}  Kc7 {[%clk 0:00:02]} 48. Rc3 {[%clk 0:00:12]}  Rb2 {[%clk 0:00:03]} 49. Ka4 {[%clk 0:00:12]}  Rb1 {[%clk 0:00:03]} 50. g4 {[%clk 0:00:10]}  Rg1 {[%clk 0:00:03]} 51. Rc4 {[%clk 0:00:10]}  Rb1 {[%clk 0:00:04]} 52. g5 {[%clk 0:00:10]}  Rg1 {[%clk 0:00:03]} 53. Rc5 {[%clk 0:00:10]}  Rb1 {[%clk 0:00:03]} 54. Ka3 {[%clk 0:00:09]}  Rb8 {[%clk 0:00:02]} 55. g6 {[%clk 0:00:07]}  Rg8 {[%clk 0:00:02]} 56. Rg5 {[%clk 0:00:08]}  Kxc6 {[%clk 0:00:02]} 57. Kb4 {[%clk 0:00:08]}  Kd6 {[%clk 0:00:02]} 58. Kc4 {[%clk 0:00:09]}  Ke6 {[%clk 0:00:03]} 59. Kd4 {[%clk 0:00:10]}  Kf6 {[%clk 0:00:03]} 60. Rg3 {[%clk 0:00:09]}  Rxg6 {[%clk 0:00:04]} 61. Rxg6+ {[%clk 0:00:09]}  Kxg6 {[%clk 0:00:04]} 1/2-1/2


[Site "https://www.chess.com"]

[Event "Titled Tuesday Blitz November 14 Early 2023"]
[White "Jamal-Jamal-Jamal"]
[Black "Begmuratov, Alisher"]
[BlackFideId "14203367"]
[WhiteElo "2453"]
[BlackElo "2717"]
[Result "0-1"]
[Round "8"]
[TimeControl "180+1"]
[Date "2023.11.14"]
[WhiteClock "0:02:11"]
[BlackClock "0:01:42"]
[Board "53"]

1. e4 {[%clk 0:03:00]}  e5 {[%clk 0:02:58]} 2. Nf3 {[%clk 0:03:01]}  Nc6 {[%clk 0:02:57]} 3. d4 {[%clk 0:03:01]}  exd4 {[%clk 0:02:57]} 4. Nxd4 {[%clk 0:03:02]}  Nf6 {[%clk 0:02:55]} 5. Nxc6 {[%clk 0:03:02]}  bxc6 {[%clk 0:02:54]} 6. Qe2 {[%clk 0:03:03]}  d6 {[%clk 0:02:52]} 7. Nc3 {[%clk 0:03:02]}  Be7 {[%clk 0:02:52]} 8. b3 {[%clk 0:03:03]}  O-O {[%clk 0:02:52]} 9. Bb2 {[%clk 0:03:04]}  Nd7 {[%clk 0:02:48]} 10. O-O-O {[%clk 0:03:03]}  Bf6 {[%clk 0:02:46]} 11. Kb1 {[%clk 0:03:01]}  a5 {[%clk 0:02:46]} 12. a4 {[%clk 0:03:00]}  Nc5 {[%clk 0:02:40]} 13. f3 {[%clk 0:02:58]}  Rb8 {[%clk 0:02:39]} 14. f4 {[%clk 0:02:48]}  Qe7 {[%clk 0:02:35]} 15. g4 {[%clk 0:02:34]}  Bxc3 {[%clk 0:02:15]} 16. Bxc3 {[%clk 0:02:31]}  Nxe4 {[%clk 0:02:13]} 17. Bb2 {[%clk 0:02:28]}  d5 {[%clk 0:02:10]} 18. Bg2 {[%clk 0:02:25]}  Nc3+ {[%clk 0:02:09]} 19. Bxc3 {[%clk 0:02:22]}  Qxe2 {[%clk 0:02:10]} 20. Rd2 {[%clk 0:02:22]}  Qxg4 {[%clk 0:01:56]} 21. Rg1 {[%clk 0:02:21]}  Bf5 {[%clk 0:01:52]} 22. Kb2 {[%clk 0:02:18]}  Bg6 {[%clk 0:01:45]} 23. h3 {[%clk 0:02:12]}  Qxf4 {[%clk 0:01:43]} 24. h4 {[%clk 0:02:11]}  Qxh4 {[%clk 0:01:42]} 0-1


[Site "https://www.chess.com"]

[Event "Titled Tuesday Blitz November 14 Early 2023"]
[White "YouShallNotPass001"]
[Black "Rozman, Levy"]
[BlackFideId "2039877"]
[WhiteElo "2453"]
[BlackElo "2710"]
[Result "1-0"]
[Round "8"]
[TimeControl "180+1"]
[Date "2023.11.14"]
[WhiteClock "0:01:00"]
[BlackClock "0:00:00"]
[Board "54"]

1. Nf3 {[%clk 0:03:00]}  g6 {[%clk 0:02:57]} 2. e3 {[%clk 0:03:01]}  Bg7 {[%clk 0:02:55]} 3. Be2 {[%clk 0:03:02]}  f5 {[%clk 0:02:52]} 4. O-O {[%clk 0:03:03]}  Nf6 {[%clk 0:02:52]} 5. d4 {[%clk 0:03:03]}  O-O {[%clk 0:02:53]} 6. c4 {[%clk 0:03:04]}  d6 {[%clk 0:02:52]} 7. Nc3 {[%clk 0:03:05]}  Nc6 {[%clk 0:02:53]} 8. b4 {[%clk 0:03:05]}  Nxb4 {[%clk 0:02:48]} 9. Qb3 {[%clk 0:03:06]}  Na6 {[%clk 0:02:45]} 10. c5+ {[%clk 0:03:04]}  d5 {[%clk 0:02:39]} 11. Bxa6 {[%clk 0:03:03]}  bxa6 {[%clk 0:02:39]} 12. c6 {[%clk 0:03:04]}  Kh8 {[%clk 0:02:29]} 13. Ba3 {[%clk 0:03:03]}  Be6 {[%clk 0:02:24]} 14. Rab1 {[%clk 0:03:01]}  Bg8 {[%clk 0:02:05]} 15. Ne5 {[%clk 0:02:37]}  Ne4 {[%clk 0:01:53]} 16. Nxe4 {[%clk 0:02:12]}  dxe4 {[%clk 0:01:46]} 17. Qc3 {[%clk 0:02:11]}  Bxa2 {[%clk 0:01:37]} 18. Ra1 {[%clk 0:02:06]}  Bd5 {[%clk 0:01:35]} 19. Nd7 {[%clk 0:02:06]}  Rg8 {[%clk 0:01:25]} 20. Bb4 {[%clk 0:02:03]}  Be6 {[%clk 0:01:01]} 21. Nc5 {[%clk 0:02:02]}  Bc8 {[%clk 0:00:56]} 22. Nxa6 {[%clk 0:02:00]}  f4 {[%clk 0:00:44]} 23. Qc5 {[%clk 0:01:49]}  f3 {[%clk 0:00:38]} 24. Qxe7 {[%clk 0:01:47]}  fxg2 {[%clk 0:00:30]} 25. Rfc1 {[%clk 0:01:42]}  Bxa6 {[%clk 0:00:20]} 26. Rxa6 {[%clk 0:01:40]}  Qd5 {[%clk 0:00:15]} 27. Ra5 {[%clk 0:01:31]}  Qb3 {[%clk 0:00:13]} 28. Ra3 {[%clk 0:01:32]}  Qb2 {[%clk 0:00:12]} 29. Rac3 {[%clk 0:01:31]}  Rgf8 {[%clk 0:00:10]} 30. R3c2 {[%clk 0:01:30]}  Qb3 {[%clk 0:00:10]} 31. Bc5 {[%clk 0:01:27]}  a5 {[%clk 0:00:07]} 32. Qxe4 {[%clk 0:01:26]}  a4 {[%clk 0:00:07]} 33. Bxf8 {[%clk 0:01:25]}  Rxf8 {[%clk 0:00:06]} 34. Rc3 {[%clk 0:01:25]}  Qb2 {[%clk 0:00:05]} 35. Qc2 {[%clk 0:01:24]}  Qb4 {[%clk 0:00:06]} 36. Rc4 {[%clk 0:01:24]}  Qd6 {[%clk 0:00:03]} 37. Rxa4 {[%clk 0:01:20]}  Bh6 {[%clk 0:00:04]} 38. Qc5 {[%clk 0:01:14]}  Qd8 {[%clk 0:00:02]} 39. Qe5+ {[%clk 0:01:08]}  Bg7 {[%clk 0:00:02]} 40. Qg3 {[%clk 0:01:08]}  Qe7 {[%clk 0:00:01]} 41. Ra7 {[%clk 0:01:06]}  Rc8 {[%clk 0:00:01]} 42. Rca1 {[%clk 0:01:05]}  h5 {[%clk 0:00:01]} 43. Ra8 {[%clk 0:01:05]}  Rxa8 {[%clk 0:00:01]} 44. Rxa8+ {[%clk 0:01:05]}  Kh7 {[%clk 0:00:02]} 45. Ra7 {[%clk 0:01:04]}  h4 {[%clk 0:00:00]} 46. Qxc7 {[%clk 0:01:00]} 1-0


[Site "https://www.chess.com"]

[Event "Titled Tuesday Blitz November 14 Early 2023"]
[White "mind1mover"]
[Black "Vestby-Ellingsen, Mads"]
[BlackFideId "1520857"]
[WhiteElo "2825"]
[BlackElo "2573"]
[Result "1-0"]
[Round "8"]
[TimeControl "180+1"]
[Date "2023.11.14"]
[WhiteClock "0:00:05"]
[BlackClock "0:00:00"]
[Board "55"]

1. d4 {[%clk 0:03:00]}  d5 {[%clk 0:02:59]} 2. Nf3 {[%clk 0:02:58]}  Nf6 {[%clk 0:02:57]} 3. c3 {[%clk 0:02:59]}  Bf5 {[%clk 0:02:55]} 4. Qb3 {[%clk 0:02:59]}  Qc8 {[%clk 0:02:55]} 5. Bf4 {[%clk 0:02:59]}  e6 {[%clk 0:02:55]} 6. e3 {[%clk 0:03:00]}  h6 {[%clk 0:02:54]} 7. h3 {[%clk 0:02:59]}  Nbd7 {[%clk 0:02:51]} 8. Nbd2 {[%clk 0:02:59]}  Be7 {[%clk 0:02:49]} 9. Be2 {[%clk 0:02:59]}  O-O {[%clk 0:02:49]} 10. O-O {[%clk 0:02:59]}  c5 {[%clk 0:02:49]} 11. a4 {[%clk 0:02:56]}  a6 {[%clk 0:02:42]} 12. a5 {[%clk 0:02:54]}  c4 {[%clk 0:02:43]} 13. Qa4 {[%clk 0:02:51]}  b5 {[%clk 0:02:39]} 14. axb6 {[%clk 0:02:50]}  Nxb6 {[%clk 0:02:40]} 15. Qa5 {[%clk 0:02:21]}  Nfd7 {[%clk 0:02:39]} 16. Rfc1 {[%clk 0:02:15]}  Qb7 {[%clk 0:02:36]} 17. b3 {[%clk 0:02:04]}  cxb3 {[%clk 0:02:35]} 18. Nxb3 {[%clk 0:02:05]}  Nc4 {[%clk 0:02:34]} 19. Bxc4 {[%clk 0:02:04]}  dxc4 {[%clk 0:02:35]} 20. Nbd2 {[%clk 0:02:00]}  Rfc8 {[%clk 0:02:27]} 21. Ne5 {[%clk 0:01:43]}  Nxe5 {[%clk 0:02:18]} 22. Bxe5 {[%clk 0:01:44]}  Qb2 {[%clk 0:02:13]} 23. Qa2 {[%clk 0:01:35]}  Qb7 {[%clk 0:01:49]} 24. Nxc4 {[%clk 0:01:23]}  Be4 {[%clk 0:01:46]} 25. Na5 {[%clk 0:01:14]}  Qd7 {[%clk 0:01:39]} 26. f3 {[%clk 0:01:10]}  Bg6 {[%clk 0:01:38]} 27. Qa4 {[%clk 0:01:05]}  Qd8 {[%clk 0:01:25]} 28. Nc6 {[%clk 0:01:01]}  Qe8 {[%clk 0:01:25]} 29. Nxe7+ {[%clk 0:00:59]}  Qxe7 {[%clk 0:01:26]} 30. c4 {[%clk 0:00:55]}  f6 {[%clk 0:01:17]} 31. Bg3 {[%clk 0:00:53]}  Be8 {[%clk 0:01:12]} 32. Qa5 {[%clk 0:00:45]}  Qf7 {[%clk 0:01:05]} 33. Rab1 {[%clk 0:00:40]}  Qg6 {[%clk 0:01:01]} 34. Kh2 {[%clk 0:00:36]}  Rxc4 {[%clk 0:00:59]} 35. Rxc4 {[%clk 0:00:35]}  Qxb1 {[%clk 0:01:00]} 36. Rc7 {[%clk 0:00:31]}  Qg6 {[%clk 0:00:38]} 37. d5 {[%clk 0:00:28]}  e5 {[%clk 0:00:29]} 38. d6 {[%clk 0:00:18]}  Rd8 {[%clk 0:00:29]} 39. Qxa6 {[%clk 0:00:15]}  Kh7 {[%clk 0:00:24]} 40. Qb6 {[%clk 0:00:13]}  Qd3 {[%clk 0:00:22]} 41. Rxg7+ {[%clk 0:00:10]}  Kxg7 {[%clk 0:00:22]} 42. Qxd8 {[%clk 0:00:10]}  Ba4 {[%clk 0:00:17]} 43. Qe7+ {[%clk 0:00:09]}  Kg6 {[%clk 0:00:17]} 44. Bh4 {[%clk 0:00:07]}  Qf5 {[%clk 0:00:15]} 45. e4 {[%clk 0:00:02]}  Qf4+ {[%clk 0:00:13]} 46. Bg3 {[%clk 0:00:03]}  Qd2 {[%clk 0:00:11]} 47. h4 {[%clk 0:00:02]}  h5 {[%clk 0:00:11]} 48. Qf8 {[%clk 0:00:02]}  Qh6 {[%clk 0:00:10]} 49. Qg8+ {[%clk 0:00:03]}  Qg7 {[%clk 0:00:10]} 50. Qxg7+ {[%clk 0:00:03]}  Kxg7 {[%clk 0:00:11]} 51. Be1 {[%clk 0:00:04]}  Bd7 {[%clk 0:00:11]} 52. Bb4 {[%clk 0:00:05]}  Kf7 {[%clk 0:00:10]} 53. Kg3 {[%clk 0:00:05]}  Kg6 {[%clk 0:00:10]} 54. Kf2 {[%clk 0:00:05]}  Kf7 {[%clk 0:00:08]} 55. Ke3 {[%clk 0:00:06]}  Be6 {[%clk 0:00:06]} 56. Ba3 {[%clk 0:00:06]}  Ke8 {[%clk 0:00:06]} 57. g3 {[%clk 0:00:04]}  Kf7 {[%clk 0:00:06]} 58. f4 {[%clk 0:00:04]}  Bg4 {[%clk 0:00:03]} 59. f5 {[%clk 0:00:03]}  Ke8 {[%clk 0:00:03]} 60. Bb4 {[%clk 0:00:03]}  Kd7 {[%clk 0:00:03]} 61. Ba5 {[%clk 0:00:04]}  Bh3 {[%clk 0:00:02]} 62. Bb6 {[%clk 0:00:03]}  Bg4 {[%clk 0:00:03]} 63. Bc5 {[%clk 0:00:03]}  Kc6 {[%clk 0:00:03]} 64. Bb4 {[%clk 0:00:02]}  Kd7 {[%clk 0:00:03]} 65. Kf2 {[%clk 0:00:02]}  Bh3 {[%clk 0:00:04]} 66. Kf3 {[%clk 0:00:02]}  Bg4+ {[%clk 0:00:04]} 67. Kg2 {[%clk 0:00:02]}  Be2 {[%clk 0:00:04]} 68. Ba5 {[%clk 0:00:02]}  Bg4 {[%clk 0:00:04]} 69. Bc7 {[%clk 0:00:02]}  Bd1 {[%clk 0:00:04]} 70. Kf2 {[%clk 0:00:02]}  Bg4 {[%clk 0:00:04]} 71. Ke3 {[%clk 0:00:03]}  Bh3 {[%clk 0:00:05]} 72. Kd3 {[%clk 0:00:03]}  Bg4 {[%clk 0:00:05]} 73. Ba5 {[%clk 0:00:03]}  Bf3 {[%clk 0:00:05]} 74. Bd2 {[%clk 0:00:02]}  Bg4 {[%clk 0:00:05]} 75. Bh6 {[%clk 0:00:02]}  Kxd6 {[%clk 0:00:05]} 76. Bf8+ {[%clk 0:00:03]}  Kd7 {[%clk 0:00:06]} 77. Bb4 {[%clk 0:00:03]}  Bh3 {[%clk 0:00:06]} 78. Kc4 {[%clk 0:00:03]}  Ke8 {[%clk 0:00:03]} 79. Kd5 {[%clk 0:00:03]}  Kf7 {[%clk 0:00:03]} 80. Bd6 {[%clk 0:00:03]}  Bf1 {[%clk 0:00:04]} 81. Bxe5 {[%clk 0:00:02]}  fxe5 {[%clk 0:00:03]} 82. Kxe5 {[%clk 0:00:03]}  Bg2 {[%clk 0:00:01]} 83. Kf4 {[%clk 0:00:03]}  Kf6 {[%clk 0:00:02]} 84. e5+ {[%clk 0:00:03]}  Kf7 {[%clk 0:00:03]} 85. Kg5 {[%clk 0:00:04]}  Be4 {[%clk 0:00:03]} 86. e6+ {[%clk 0:00:04]}  Kg7 {[%clk 0:00:03]} 87. f6+ {[%clk 0:00:03]}  Kf8 {[%clk 0:00:02]} 88. Kxh5 {[%clk 0:00:02]}  Bf5 {[%clk 0:00:02]} 89. e7+ {[%clk 0:00:02]}  Kf7 {[%clk 0:00:03]} 90. Kg5 {[%clk 0:00:02]}  Bd7 {[%clk 0:00:02]} 91. g4 {[%clk 0:00:03]}  Kg8 {[%clk 0:00:02]} 92. Kg6 {[%clk 0:00:02]}  Be8+ {[%clk 0:00:02]} 93. Kf5 {[%clk 0:00:02]}  Bd7+ {[%clk 0:00:02]} 94. Ke5 {[%clk 0:00:03]}  Kf7 {[%clk 0:00:03]} 95. g5 {[%clk 0:00:03]}  Kg6 {[%clk 0:00:02]} 96. Kd6 {[%clk 0:00:04]}  Be8 {[%clk 0:00:02]} 97. Ke6 {[%clk 0:00:04]}  Ba4 {[%clk 0:00:01]} 98. h5+ {[%clk 0:00:04]}  Kxh5 {[%clk 0:00:01]} 99. f7 {[%clk 0:00:04]}  Bb3+ {[%clk 0:00:00]} 100. Kf6 {[%clk 0:00:05]} 1-0


[Site "https://www.chess.com"]

[Event "Titled Tuesday Blitz November 14 Early 2023"]
[White "Weetik, Vjacheslav"]
[Black "Ozates, Tuna"]
[WhiteFideId "4153472"]
[BlackFideId "6354521"]
[WhiteElo "2810"]
[BlackElo "2566"]
[Result "1-0"]
[Round "8"]
[TimeControl "180+1"]
[Date "2023.11.14"]
[WhiteClock "0:02:07"]
[BlackClock "0:01:16"]
[Board "56"]

1. e4 {[%clk 0:02:58]}  e5 {[%clk 0:02:59]} 2. Nf3 {[%clk 0:02:58]}  Nc6 {[%clk 0:02:59]} 3. Nc3 {[%clk 0:02:59]}  g6 {[%clk 0:02:58]} 4. d4 {[%clk 0:02:57]}  exd4 {[%clk 0:02:59]} 5. Nd5 {[%clk 0:02:57]}  Bg7 {[%clk 0:02:53]} 6. Bg5 {[%clk 0:02:56]}  f6 {[%clk 0:02:54]} 7. Bf4 {[%clk 0:02:55]}  d6 {[%clk 0:02:54]} 8. Bc4 {[%clk 0:02:48]}  Nge7 {[%clk 0:02:51]} 9. O-O {[%clk 0:02:38]}  Bg4 {[%clk 0:02:50]} 10. h3 {[%clk 0:02:26]}  Bxf3 {[%clk 0:02:49]} 11. Qxf3 {[%clk 0:02:27]}  Ne5 {[%clk 0:02:50]} 12. Bxe5 {[%clk 0:02:21]}  dxe5 {[%clk 0:01:57]} 13. Nxf6+ {[%clk 0:02:18]}  Bxf6 {[%clk 0:01:58]} 14. Qxf6 {[%clk 0:02:19]}  Rf8 {[%clk 0:01:58]} 15. Qxe5 {[%clk 0:02:18]}  Qd6 {[%clk 0:01:49]} 16. Qxd6 {[%clk 0:02:15]}  cxd6 {[%clk 0:01:50]} 17. Rad1 {[%clk 0:02:15]}  Nc6 {[%clk 0:01:50]} 18. Bb5 {[%clk 0:02:14]}  Ke7 {[%clk 0:01:44]} 19. Bxc6 {[%clk 0:02:14]}  bxc6 {[%clk 0:01:45]} 20. Rxd4 {[%clk 0:02:14]}  Rfd8 {[%clk 0:01:44]} 21. Rfd1 {[%clk 0:02:11]}  Rab8 {[%clk 0:01:44]} 22. b3 {[%clk 0:02:11]}  a5 {[%clk 0:01:38]} 23. f3 {[%clk 0:02:11]}  Rb4 {[%clk 0:01:34]} 24. Kf2 {[%clk 0:02:10]}  c5 {[%clk 0:01:31]} 25. Rd5 {[%clk 0:02:07]}  a4 {[%clk 0:01:16]} 26. e5 {[%clk 0:02:07]} 1-0


[Site "https://www.chess.com"]

[Event "Titled Tuesday Blitz November 14 Early 2023"]
[White "Pham, Le Thao Nguyen"]
[Black "CrazyAdvenTures"]
[WhiteFideId "12401226"]
[WhiteElo "2554"]
[BlackElo "2803"]
[Result "0-1"]
[Round "8"]
[TimeControl "180+1"]
[Date "2023.11.14"]
[WhiteClock "0:00:05"]
[BlackClock "0:00:02"]
[Board "57"]

1. d4 {[%clk 0:02:54]}  Nf6 {[%clk 0:02:59]} 2. c4 {[%clk 0:02:54]}  g6 {[%clk 0:03:00]} 3. Nc3 {[%clk 0:02:55]}  Bg7 {[%clk 0:03:01]} 4. e4 {[%clk 0:02:52]}  d6 {[%clk 0:03:01]} 5. Nf3 {[%clk 0:02:53]}  O-O {[%clk 0:03:02]} 6. h3 {[%clk 0:02:53]}  e5 {[%clk 0:03:02]} 7. dxe5 {[%clk 0:02:53]}  dxe5 {[%clk 0:03:02]} 8. Qxd8 {[%clk 0:02:54]}  Rxd8 {[%clk 0:03:03]} 9. Nd5 {[%clk 0:02:51]}  Na6 {[%clk 0:03:03]} 10. Bg5 {[%clk 0:02:49]}  Rd6 {[%clk 0:03:03]} 11. Nd2 {[%clk 0:02:33]}  c6 {[%clk 0:02:47]} 12. Nxf6+ {[%clk 0:02:23]}  Bxf6 {[%clk 0:02:47]} 13. Bxf6 {[%clk 0:02:20]}  Rxf6 {[%clk 0:02:48]} 14. a3 {[%clk 0:02:16]}  Nc5 {[%clk 0:02:43]} 15. b4 {[%clk 0:02:07]}  Ne6 {[%clk 0:02:43]} 16. Nf3 {[%clk 0:02:08]}  Nf4 {[%clk 0:02:40]} 17. O-O-O {[%clk 0:01:52]}  Be6 {[%clk 0:02:19]} 18. Nxe5 {[%clk 0:01:48]}  a5 {[%clk 0:02:19]} 19. b5 {[%clk 0:01:36]}  cxb5 {[%clk 0:02:09]} 20. cxb5 {[%clk 0:01:37]}  Rc8+ {[%clk 0:01:59]} 21. Kb2 {[%clk 0:01:36]}  Nxh3 {[%clk 0:01:49]} 22. f3 {[%clk 0:01:23]}  Nf2 {[%clk 0:01:48]} 23. Be2 {[%clk 0:01:24]}  Nxh1 {[%clk 0:01:43]} 24. Rxh1 {[%clk 0:01:25]}  Rc5 {[%clk 0:01:34]} 25. Nd3 {[%clk 0:01:17]}  Rxb5+ {[%clk 0:01:34]} 26. Kc2 {[%clk 0:01:17]}  Bc4 {[%clk 0:01:30]} 27. Kc3 {[%clk 0:01:05]}  Rc6 {[%clk 0:01:23]} 28. Kd4 {[%clk 0:01:04]}  Bxd3 {[%clk 0:01:20]} 29. Bxd3 {[%clk 0:01:04]}  Rb3 {[%clk 0:01:20]} 30. Bc4 {[%clk 0:00:57]}  Rxa3 {[%clk 0:01:15]} 31. Bd5 {[%clk 0:00:57]}  Rc2 {[%clk 0:01:12]} 32. Rb1 {[%clk 0:00:50]}  Rxg2 {[%clk 0:01:05]} 33. f4 {[%clk 0:00:50]}  Ra4+ {[%clk 0:00:50]} 34. Ke5 {[%clk 0:00:49]}  Rb4 {[%clk 0:00:50]} 35. Rc1 {[%clk 0:00:48]}  Rb5 {[%clk 0:00:27]} 36. Rc7 {[%clk 0:00:40]}  Rf2 {[%clk 0:00:20]} 37. Rc8+ {[%clk 0:00:24]}  Kg7 {[%clk 0:00:20]} 38. Rc7 {[%clk 0:00:25]}  Kh6 {[%clk 0:00:13]} 39. Rxf7 {[%clk 0:00:25]}  a4 {[%clk 0:00:08]} 40. Rf8 {[%clk 0:00:20]}  a3 {[%clk 0:00:04]} 41. Ra8 {[%clk 0:00:20]}  a2 {[%clk 0:00:04]} 42. Ra3 {[%clk 0:00:16]}  b6 {[%clk 0:00:02]} 43. Rh3+ {[%clk 0:00:09]}  Kg7 {[%clk 0:00:02]} 44. Ra3 {[%clk 0:00:05]}  Ra5 {[%clk 0:00:02]} 0-1


[Site "https://www.chess.com"]